Cogmind - Beta 13 @@@ ROGUE MODE // 2024.04.04 @ 23:09:17 Player: Skysub Result: Destroyed by VQ-V3I(B) with Heavy Battle Rifle Performance ------------- Evolutions (1) 500 Regions Visited (4) 800 Robots Destroyed (21) 105 Value Destroyed (266) 266 Prototype IDs (1) 20 Alien Tech Used (0) 0 Bonus (584) 584 TOTAL SCORE: 2275 Bonus ------- Met Imprinter 300 Was Imprinted 300 Friendly Fire -16 Cogmind --------- Core Integrity 0/400 Matter 218/300 Energy 98/100 System Corruption 5% Temperature Cool (0) Movement Core (50) Location -7/Zion Parts ------- > --- POWER (1) -------- (None) > --- PROPULSION (3) --- (None) > --- UTILITY (3) ------ Improved Signal Interpreter 0b10 Decoder Chip [Generic] 0b10 Decoder Chip [Scout] > --- WEAPON (2) ------- (None) > --- INVENTORY (5) ---- 0b10 Decoder Chip [Looter] Relay Coupler [Programmer] (88) Lightning Gun Heavy Missile Launcher Peak State ------------ > --- POWER ------------ Light Ion Engine > --- PROPULSION ------- Airjet Flight Unit Cesium-ion Thruster > --- UTILITY ---------- Small Storage Unit Improved Signal Interpreter Seismic Detector > --- WEAPON ----------- Grenade Launcher Rocket Array > --- INVENTORY -------- Visual Processing Unit 0b10 Decoder Chip [Generic] 0b10 Decoder Chip [Looter] 0b10 Decoder Chip [Scout] ECM Suite Lightning Gun Heavy Missile Launcher [Rating: 21] Favorites ----------- Power Ion Engine Engine Ion Engine Propulsion Aluminum Leg Leg Aluminum Leg Wheel Wheel Hover Unit Airjet Flight Unit Flight Unit Utility Small Storage Unit Device Seismic Detector Storage Small Storage Unit Processor Improved Signal Interpreter Weapon Grenade Launcher Energy Gun Medium Laser Ballistic Cannon Light Cannon Launcher Grenade Launcher Impact Weapon Flail Build | -11 -10 -9 -9 -7 ------- Run | Yrd Mat Mat Min Zio Slots Evolved 2 | . . 2 . . Power . | . . . . . Propulsion 1 | . . 1 . . Utility 1 | . . 1 . . Weapon . | . . . . . Parts Attached 33 | 8 5 7 4 9 Power 2 | 1 . . . 1 Engine 2 | 1 . . . 1 Core . | . . . . . Reactor . | . . . . . Propulsion 10 | 3 . 1 2 4 Treads . | . . . . . Leg 3 | 2 . . . 1 Wheel 4 | 1 . 1 1 1 Hover 1 | . . . . 1 Flight 2 | . . . 1 1 Utility 8 | 2 1 2 . 3 Device 2 | 1 . 1 . . Storage 1 | 1 . . . . Processor 5 | . 1 1 . 3 Hackware . | . . . . . Protection . | . . . . . Artifact . | . . . . . Weapon 13 | 2 4 4 2 1 Energy Gun 4 | 2 2 . . . Energy Cannon . | . . . . . Ballistic Gun . | . . . . . Ballistic Cannon 3 | . . 2 1 . Launcher 5 | . 2 1 1 1 Special Weapon . | . . . . . Impact Weapon 1 | . . 1 . . Slashing Weapon . | . . . . . Piercing Weapon . | . . . . . Special Melee Weapon . | . . . . . Unidentified Prototypes 1 | . . . . 1 Parts Lost 7 | . . . 2 5 Power 1 | . . . . 1 Propulsion 5 | . . . 2 3 Utility . | . . . . . Weapon 1 | . . . . 1 Highest Loss Streak 5 | . . . 2 5 To Critical Strikes . | . . . . . Average Slot Usage (%) 93 | . 100 100 82 94 Engine 8 | . 14 11 . 9 Leg 14 | . 28 22 11 7 Wheel 6 | . . 11 5 10 Flight 8 | . . . 10 13 Device 9 | . 5 11 11 10 Storage 11 | . 14 11 11 10 Processor 10 | . 8 11 11 11 Energy Gun 5 | . 18 6 . . Ballistic Cannon 4 | . . 6 6 5 Launcher 10 | . 9 . 11 14 Impact Weapon 2 | . . 8 4 . Naked Turns . | . . . . . Heaviest Build 19 | 14 16 16 16 19 Greatest Support 20 | 20 20 20 10 10 Greatest Overweight (x) 6 | . . . 1 6 Average Overweight (x) . | . . . 1 . Largest Inventory Capacity 8 | 8 8 8 8 8 Average Capacity 7 | 7 8 8 8 7 Most Carried 8 | 2 7 8 8 8 Average Carried 6 | 1 5 6 7 7 Final Capacity 8 | 8 8 8 8 5 Final Carried 8 | 2 7 8 8 4 Class Distribution -------------------- 53% | Mutant 46% | Scavenger-Mutant Dominant Class ---------------- Mutant | -10/Materials Mutant | -9/Materials Mutant | -9/Mines Scavenger-Mutant | -7/Zion Resources | -11 -10 -9 -9 -7 ----------- Run | Yrd Mat Mat Min Zio Matter Collected 597 | 280 108 93 11 105 Remotely . | . . . . . Salvage Created 307 | 116 18 95 78 . Parts 29 | 8 5 12 4 . Haulers Intercepted . | . . . . . Recyclers Shooed 1 | 1 . . . . Parts Field Recycled . | . . . . . Retrieved Matter . | . . . . . Parts Self-Destructed . | . . . . . Prevented . | . . . . . Kills | -11 -10 -9 -9 -7 ------- Run | Yrd Mat Mat Min Zio Combat Hostiles Destroyed 12 | . 6 3 3 . Melee 1 | . . 1 . . Guns 1 | . 1 . . . AOE 9 | . 5 1 3 . Classes Destroyed 8 | 2 3 3 . . Worker 2 | . . 1 1 . Tunneler 3 | 2 . . 1 . Recycler 2 | 1 . . 1 . Operator 1 | . 1 . . . Watcher 1 | . . 1 . . Swarmer 10 | . 5 2 3 . Grunt 1 | . 1 . . . Sentry 1 | . . 1 . . Best Kill Streak 4 | 3 3 4 3 . Combat Bots Only 3 | . 3 2 3 . Max Kills in Single Turn 2 | 1 2 1 1 . Gunslinging . | . . . . . Exploded 2 | . 2 1 1 . Melee 1 | . . 1 . . Uniques/NPCs Destroyed . | . . . . . Combat | -11 -10 -9 -9 -7 -------- Run | Yrd Mat Mat Min Zio Hostile Shots Fired 159 | . 47 22 7 83 Missed 60 | . 19 7 1 33 Damage Taken 1176 | . 264 144 65 703 Core 485 | . 71 21 7 386 Absorbed by Shields . | . . . . . Regen/Repaired (Parts) 44 | . . 44 . . Core Remaining (%) 85 | 100 71 . . . Volleys Fired 37 | 4 16 9 7 1 Largest 2 | 2 2 1 1 1 Hottest 90 | 90 90 35 35 30 Shots Fired 55 | 8 30 9 7 1 Gun 30 | 8 22 . . . Cannon 11 | . . 7 4 . Launcher 14 | . 8 2 3 1 Special . | . . . . . Kinetic 11 | . . 7 4 . Thermal 30 | 8 22 . . . Explosive 14 | . 8 2 3 1 Electromagnetic . | . . . . . Robot Hit Streak 6 | 6 4 1 4 . Robot Miss Streak 7 | 1 7 3 1 . Penetration Max . | . . . . . Secondary Targets . | . . . . . Shots Hit Robots 35 | 7 14 6 8 . Core Hits 25 | 4 12 5 4 . Critical Kills . | . . . . . Critical Parts Destroyed . | . . . . . Critical Strikes 3 | 2 1 . . . Burn 3 | 2 1 . . . Melee Attacks 5 | . . 3 2 . Impact 5 | . . 3 2 . Slashing . | . . . . . Piercing . | . . . . . Sneak Attacks 2 | . . . 2 . Combat Hostiles . | . . . . . Follow-up Attacks . | . . . . . Damage Inflicted 1440 | 84 605 271 464 16 Guns 202 | 84 118 . . . Cannons 84 | . . 33 51 . Explosions 884 | . 487 114 267 16 Melee 270 | . . 124 146 . Ramming . | . . . . . Kinetic 84 | . . 33 51 . Thermal 202 | 84 118 . . . Explosive 884 | . 487 114 267 16 Electromagnetic . | . . . . . Impact 270 | . . 124 146 . Slashing . | . . . . . Piercing . | . . . . . Highest Corruption 5 | . . 1 1 5 Average Corruption 1 | . . 1 1 3 Corruption Purged . | . . . . . Corruption Blocked . | . . . . . Effects 3 | . . 1 2 . Message Errors 2 | . . . 2 . Energy Discharges 1 | . . 1 . . Overload Shots . | . . . . . Overflow Damage 135 | . 13 18 104 . Projectiles . | . . . . . Explosions 48 | . 13 7 28 . Melee 87 | . . 11 76 . Knockbacks 4 | . . 1 3 . Impact 2 | . . . 2 . Kinetic 2 | . . 1 1 . Secondary . | . . . . . Self-Inflicted Damage 50 | . 27 . 23 . Shots 3 | . 1 . 2 . Rammed . | . . . . . Targets Rammed . | . . . . . Kicked . | . . . . . Crushed . | . . . . . Highest Temperature 120 | 120 78 . . . Average Temperature 38 | 62 31 . . . Received Heat Transfer 98 | . 6 33 . 59 Siege Activations . | . . . . . Robots Corrupted . | . . . . . Combat Hostiles . | . . . . . Parts Fried 4 | . . 2 2 . Impact Corruptions 5 | . . 1 4 . Robots Melted . | . . . . . Combat Hostiles . | . . . . . Parts Melted 2 | 2 . . . . Heat Transferred 755 | 359 396 . . . Parts Sabotaged . | . . . . . Parts Stolen . | . . . . . Parts Stripped . | . . . . . Power Chain Reactions . | . . . . . Alert | -11 -10 -9 -9 -7 ------- Run | Yrd Mat Mat Min Zio Peak Influence 256 | 15 256 164 144 . Initial 63 | . 9 18 63 . Average 89 | 6 89 89 111 . Maximum Alert Level 1 | . 1 . . . Low Security (%) 95 | 100 88 100 100 . Level 1 4 | . 11 . . . Level 2 . | . . . . . Level 3 . | . . . . . Level 4 . | . . . . . Level 5 . | . . . . . High Security . | . . . . . Max Security . | . . . . . Squads Dispatched 1 | . . 1 . . Investigation 1 | . . 1 . . Extermination . | . . . . . Reinforcement . | . . . . . Assault . | . . . . . Garrison . | . . . . . Intercept . | . . . . . Searches Triggered . | . . . . . Construction Impeded . | . . . . . Haulers Reinforced . | . . . . . Active Scanning Responses . | . . . . . Cargo Convoy Interrupts . | . . . . . Stealth | -11 -10 -9 -9 -7 --------- Run | Yrd Mat Mat Min Zio Distress Signals 1 | . 1 . . . Communications Jammed . | . . . . . Distress Signals . | . . . . . Times Spotted 56 | . 15 10 3 28 Peak Tracking Total 24 | . 5 6 3 24 Tactical Retreats 1 | . . . . 1 Traps | -11 -10 -9 -9 -7 ------- Run | Yrd Mat Mat Min Zio Traps Triggered . | . . . . . Indirectly . | . . . . . Trap Hack Attempts . | . . . . . Triggered . | . . . . . Disarmed . | . . . . . Reprogrammed . | . . . . . Reused . | . . . . . Traps Extracted . | . . . . . Installed . | . . . . . Triggered . | . . . . . Machines | -11 -10 -9 -9 -7 ---------- Run | Yrd Mat Mat Min Zio Machines Disabled 2 | . 2 . . . Max in Single Turn 1 | . 1 . . . Machines Repaired . | . . . . . Machines Dismantled . | . . . . . Machines Sabotaged . | . . . . . Overloaded Fab Kills . | . . . . . Hacking | -11 -10 -9 -9 -7 --------- Run | Yrd Mat Mat Min Zio Machines Accessed 11 | . 5 5 . 1 Terminals 7 | . 4 3 . . Fabricators . | . . . . . Repair Stations 1 | . . 1 . . Recycling Units 1 | . 1 . . . Scanalyzers 1 | . . 1 . . Garrison Access . | . . . . . Total Hacks 40 | . 18 17 . 5 Successful 28 | . 12 11 . 5 Failed 12 | . 6 6 . . Catastrophic 1 | . . 1 . . Database Lockouts . | . . . . . Manual 1 | . . . . 1 Terminals 24 | . 16 8 . . Fabricators . | . . . . . Repair Stations 2 | . . 2 . . Recycling Units 2 | . 2 . . . Scanalyzers 7 | . . 7 . . Garrison Access . | . . . . . Terminal Hacks 17 | . 10 2 . 5 Record 2 | . 2 . . . Part Schematic 5 | . . . . 5 Terminal Index 1 | . . 1 . . Recycling Unit Index 1 | . 1 . . . Unreport Threat 1 | . 1 . . . Locate Traps 2 | . 2 . . . Maintenance Status 1 | . 1 . . . Surveillance Status 1 | . 1 . . . Registered Components 2 | . 1 1 . . Zone Layout 1 | . 1 . . . Fabricator Hacks . | . . . . . Repair Station Hacks 2 | . . 2 . . Scan Component 1 | . . 1 . . Repair 1 | . . 1 . . Recycling Unit Hacks 2 | . 2 . . . Process 1 | . 1 . . . Report Inventory 1 | . 1 . . . Scanalyzer 7 | . . 7 . . Insert Component 4 | . . 4 . . Analyze 3 | . . 3 . . Garrison Access Hacks . | . . . . . Unauthorized Hacks . | . . . . . Terminals . | . . . . . Fabricators . | . . . . . Repair Stations . | . . . . . Recycling Units . | . . . . . Scanalyzers . | . . . . . Garrison Access . | . . . . . Data Cores Recovered . | . . . . . Used . | . . . . . Hacking Detections 9 | . 5 4 . . Full Trace Events 2 | . . 2 . . Feedback Events 1 | . . 1 . . Corruption 1 | . . 1 . . Feedback Blocked . | . . . . . Robot Schematics Acquired . | . . . . . Robots Built . | . . . . . Authchips . | . . . . . Time . | . . . . . Total Robot Build Rating . | . . . . . Part Schematics Acquired 8 | . . 3 . 5 Parts Built . | . . . . . Authchips . | . . . . . Time . | . . . . . Total Part Build Rating . | . . . . . Parts Repaired 1 | . . 1 . . Time 26 | . . 26 . . Parts Recycled . | . . . . . Recycled Matter 16 | . 16 . . . Retrieved Matter . | . . . . . Retrieved Components . | . . . . . Parts Scanalyzed 3 | . . 3 . . Part Schematics Acquired 3 | . . 3 . . Parts Damaged 1 | . . 1 . . Bothacking | -11 -10 -9 -9 -7 ------------ Run | Yrd Mat Mat Min Zio Used RIF Installer . | . . . . . Robots Hacked . | . . . . . Non-combat . | . . . . . Combat . | . . . . . Robot Hacks Applied . | . . . . . Relay Couplers Released . | . . . . . Fabnet Peak Effective % . | . . . . . Robots Rewired . | . . . . . Allies Hacked . | . . . . . Hacks Repelled . | . . . . . Allies | -11 -10 -9 -9 -7 -------- Run | Yrd Mat Mat Min Zio Total Allies 4 | . . . . 4 Largest Group 4 | . . . . 4 Highest-Rated Group 154 | . . . . 154 Highest-Rated Ally 40 | . . . . 40 Total Orders . | . . . . . Ally Attacks . | . . . . . Total Damage . | . . . . . Kills . | . . . . . Allies Corrupted . | . . . . . Allies Melted . | . . . . . Intel | -11 -10 -9 -9 -7 ------- Run | Yrd Mat Mat Min Zio Robot Analysis Total . | . . . . . Derelict Logs Recovered 3 | . . . 3 . Drone Launches . | . . . . . Drone Recoveries . | . . . . . Exploration | -11 -10 -9 -9 -7 ------------- Run | Yrd Mat Mat Min Zio Turns Passed 2315 | 136 477 297 487 918 Spaces Moved 1897 | 81 345 192 355 924 Core 91 | 4 . . . 87 Treads . | . . . . . Legs 734 | 70 345 192 127 . Wheels 1071 | 7 . . 228 836 Hover . | . . . . . Flight 1 | . . . . 1 Fastest Speed 50 | 50 120 120 95 50 Average Speed 108 | 113 120 120 128 92 Slowest Speed 350 | 120 120 120 190 350 Overloaded Moves . | . . . . . Propulsion Burnouts . | . . . . . Robots Hopped . | . . . . . Cave-ins Triggered . | . . . . . Exploration Rate (%) 50 | 6 67 19 75 86 Regions Visited 4 Branch Regions 2 Pre-discovered Areas . | . . . . . Known Exits Taken 2 | . . 1 1 . Unknown Exits Taken 2 | 1 1 . . . Scrap Searched 4 | . . . . 4 Spaces Dug . | . . . . . Terrain Destroyed 90 | . 46 9 34 1 Melee . | . . . . . Projectile . | . . . . . AOE 90 | . 46 9 34 1 Terrain Rammed . | . . . . . Walls Destroyed . | . . . . . Machines Disabled . | . . . . . Actions | -11 -10 -9 -9 -7 --------- Run | Yrd Mat Mat Min Zio Total 2094 | 114 375 243 373 989 Wait 85 | 20 5 26 3 31 Move 1893 | 80 344 191 354 924 Hop . | . . . . . Pick Up 21 | 1 5 6 1 8 Fast Attach 13 | 8 . . 1 4 Attach 8 | . . 2 1 5 Detach 4 | 1 . . 1 2 Swap 12 | . 5 5 2 . Drop 16 | . . 1 1 14 Fire 37 | 4 16 9 7 1 Melee 5 | . . 3 2 . Ram . | . . . . . Kick . | . . . . . Crush . | . . . . . Escape Stasis . | . . . . . Rewire . | . . . . . Trap . | . . . . . Miscellaneous . | . . . . . Route ------- -11/Scrapyard -10/Materials (discovered 4 exits: *Mat x3 / [*Min]) -9/Materials -9/Mines (discovered 2 exits: *Mat / *Zio) -7/Zion History --------- Turn | Location | Event 13 | -11/Scrapyard | Discovered new exit (range 14) 137 | -11/Scrapyard | Entered Materials 296 | -10/Materials | Discovered new exit (range 13) 307 | -10/Materials | Build established: Mutant 490 | -10/Materials | Discovered new exit (range 13) 498 | -10/Materials | Discovered new exit (range 15) 584 | -10/Materials | Discovered new exit (range 10) 614 | -10/Materials | Entered another Materials area 614 | -9/Materials | Evolved 2 slots: Propulsion x1, Utility x1 650 | -9/Materials | Repaired Grenade Launcher 718 | -9/Materials | Discovered new exit (range 6) 910 | -9/Materials | Identified exit to Mines 911 | -9/Materials | Entered Mines 923 | -9/Mines | Met a Derelict bent on vengeance 963 | -9/Mines | A Derelict revealed a hidden shortcut to a safe place 968 | -9/Mines | Identified exit to Zion 1097 | -9/Mines | Learned 8 Materials zone layouts 1226 | -9/Mines | Learned Materials terminal intel 1239 | -9/Mines | Learned Materials non-interactive machine intel 1241 | -9/Mines | Received a Rocket Launcher from a helpful Derelict 1258 | -9/Mines | Discovered new exit (range 6) 1263 | -9/Mines | Identified exit to Materials 1398 | -9/Mines | Entered Zion 1446 | -7/Zion | System corruption cleaned by Quarantine Array 1491 | -7/Zion | Build established: Scavenger-Mutant 1665 | -7/Zion | Imprinted 1667 | -7/Zion | Declared Zion's savior 1890 | -7/Zion | Found Prototype Launcher 1890 | -7/Zion | Identified Rocket Array 2111 | -7/Zion | Found Relay Coupler [Programmer] 2260 | -7/Zion | Attacked by Zionites 2280 | -7/Zion | Core integrity fell below 50% 2288 | -7/Zion | Core integrity fell below 20% 2304 | -7/Zion | Lost 5 parts (1p3n1w) 2312 | -7/Zion | Spotted VQ-V3I(B) 2315 | -7/Zion | Spotted TA-JAW(B) 2316 | -7/Zion | Destroyed by VQ-V3I(B) with Heavy Battle Rifle Last Messages --------------- ZU-XIM(z) examines a few pieces of the Twisted Machinery. Aluminum Leg severed. LL-RYB(z) destroyed. Dropped Sml. Storage Unit. 5R-U8U(z) pulls a Mak. Sword out of the Twisted Machinery. Chain reaction triggered in Mak. Power Source. 1Q-ZCH(z) destroyed. ZX-56R(z) destroyed. ZU-XIM(z) pulls a Mak. Shrapnel Gun out of the Twisted Machinery. 8Q-6PO(z) pulls a Mak. Laser out of the Twisted Machinery. NF-XRS(z) bursts out of the Twisted Machinery. 45-NOA(z) emerges from the Twisted Machinery. 9K-RMS(z) pulls a Mak. Laser out of the Twisted Machinery. A strange signal echoes through Zion. 6Q-8CF(z) bursts out of the Twisted Machinery. [Achievement: Hunted] YA-4RX(z) pulls a Mak. Spear out of the Twisted Machinery. 6Q-8CF(z) pulls a Mak. Spear out of the Twisted Machinery. 5H-6W0(z) pulls a Mak. Sword out of the Twisted Machinery. MN-8AR(z) bursts out of the Twisted Machinery. Map ----- +----------------------------------------------------+ | ## ## """##????????????????????????? | | " # # """#????????????????????????? | | " """ " ""#????????????????????????? | | " """ " ""#????????????????????????? | | " """ " """#????????????????????????? | | " # # " "" ""##????????????????????????? | | ## ## """" "#?????????????????????????? | | "" "##????????????????????????? | | " """""" ""#????????????????????????? | | "###" """""" """##????????????????????????? | | """"" """ """""#????????????????????????? | | #"""" """ """###??????????????????????### | | ##""" """" """ """#???????????????????????? # | | ?#""" """#""""" """#??????????????????????## # | | ?#"" """##"" " "###?????????????????????## # | | ?##" #""""" "= ""##?????????????????????# | | ?#"" """"" "[!"""#?????????????????????# | | ?##"" """"" """#?????????????????????# | | ??#"" """" ""#????????????????????## | | ??#"" """ "###?????????????????## | | ??#"" """"" """######????????????? | | ??#"" ""#" "###BB"############??# | | ??#"" """" #?#BB""""""""""""#???# | | ??#"" "" "### """"""""""""##### | | ??#"" "" z""# ## | | ??##" """"""" z @ | | ???#" """"""" ## | | ??##" """"""""""" "# ######## | | ###"" """"#"" "### """"""""""""#??##### | | """ """"#"" #?#BB""""""""""""#### | | ##" """""" """ #?#BB"#############""" | | #"" """"" """"""#?#####??????????#""""X | | ##" "#""""#????????????????#"""" | | ##" "######?????????????????#"" | | ##" """ """"""#?????????????????????## | | ## """" """#""#??????????????????????# | | ?# """" ""###"#??????????????????????## #### | | ?## ""#" "##"#####?????????????????????###???? | | ?## """" """##"""##??????????????????????????? | | ?#"" " """""""""#??????????????????????????? | | ##"" # " """ ""##??????????????????????????? | | """" " ""#??????????????????????????? | | """" """"" "##??????????????????????????? | | """ """" ""#??????????????????????????? | | """"" "####????????????????????????? | | " """""" ""#"#????????????????????????? | | #""""##" """"""" ""#?????????????????????????? | | """""""" "##?????????????????????????? | | """""" """""""" ""#?????????????????????????? | | """""" """#"""" ""#"#????????????????????????? | +----------------------------------------------------+ Best States ------------- Heat Dissipation 28 Energy Generation 10 Energy Capacity 250 Matter Stores 300 Matter Capacity 300 Sight Range 16 Terrain Scan Range 16 Terrain Scan Density 10 Evasion (%) 55 Targeting Accuracy 5 Item Schematics ----------------- Imp. Terrain Scanner | -9/Materials | Scanalyzed Flight Unit | -9/Materials | Scanalyzed ECM Suite | -9/Materials | Scanalyzed Beamcaster | -7/Zion | Free Hvy. Riot Gun | -7/Zion | Free Battle Rifle | -7/Zion | Free Battle Cannon | -7/Zion | Free Flamer | -7/Zion | Free Robot Schematics ------------------ None Fabricated ------------ Nothing Alien Tech Used ----------------- None Achievements -------------- Everything Is Under Control Hunted Robot Respite The One Challenges ------------ None Game ------ Seed FlightSystemCycler Manual? 0 Play Time 00:57:32 Cumulative 6.5 hours Start 2024.04.04 @ 22:05:15 End 2024.04.04 @ 23:09:17 Sessions 1 Manual Loads 0 Difficulty Rogue Special Mode None Game No. 4 Rogue 4 Adventurer 0 Explorer 0 Win Type - Total 0 Types 0/0/0/0/0/0/0/0/0 Lore% 4 Gallery% 7 Achievement% 7 Wizard Run 0 Options --------- Layout 1 ASCII 0 Keyboard 1 Movement Numpad Keybinds 0 Fullscreen 1 Font 32/SmallcapsGlow Map View 77x35 Zoom Use 0% Tactical HUD 0 Map Filters NONE Filters NONE Steam 1 RUN: d8ce4932-32b9-4445-932e-806b41ac3f21